[Event "Sparkassen Open 2018"]
[Site "Heusenstamm"]
[Date "2018.11.23"]
[Round "2"]
[White "Dickel, Jens"]
[Black "Hirneise, Jens"]
[Result "0-1"]
[ECO "E77"]
[WhiteElo "2077"]
[BlackElo "2370"]
[Annotator "broadcasts RC"]
[PlyCount "86"]
[EventDate "2018.11.22"]
[EventType "swiss"]
[EventCountry "GER"]
[TimeControl "40/5400+30:1800+30"]

1. d4 {[%emt 0:00:00]} Nf6 {[%emt 0:00:00]} 2. c4 {[%emt 0:00:00]} g6 {[%emt 0:00:03]} 3. Nc3 {[%emt 0:00:39]} Bg7 {[%emt 0:00:05]} 4. e4 {[%emt 0:00:16]} d6 {[%emt 0:00:04]} 5. f4 {[%emt 0:00:17]} O-O {[%emt 0:00:46]} 6. Nf3 {[%emt 0:00:29]} c5 {[%emt 0:00:33]} 7. d5 {[%emt 0:00:17]} e6 {[%emt 0:01:00]} 8. Be2 {[%emt 0:00:32]} exd5 {[%emt 0:00:25]} 9. cxd5 {[%emt 0:00:24]} Bg4 {[%emt 0:01:06]} 10. O-O {[%emt 0:04:37]} Nbd7 {[%emt 0:01:47]} 11. a4 {[%emt 0:08:33]} Ne8 {[%emt 0:02:03]} 12. Bd2 {[%emt 0:15:35]} Rb8 {[%emt 0:03:45]} 13. Ng5 {[%emt 0:02:49]} Bxe2 {[%emt 0:01:09]} 14. Qxe2 {[%emt 0:00:13]} a6 {[%emt 0:10:03]} 15. Rae1 {[%emt 0:18:36]} c4 {[%emt 0:06:43]} 16. Qxc4 Qb6+ {[%emt 0:16:58]} 17. Be3 {[%emt 0:10:04]} Qxb2 {[%emt 0:02:19]} 18. Nd1 {[%emt 0:00:46]} Qf6 {[%emt 0:02:22]} 19. e5 {[%emt 0:06:33]} dxe5 {[%emt 0:05:47]} 20. fxe5 {[%emt 0:00:11]} Qxe5 {[%emt 0:00:42]} 21. Nf2 {[%emt 0:09:05]} h5 {[%emt 0:10:35]} 22. Nd3 {[%emt 0:05:46]} Qc3 {[%emt 0:06:04]} 23. Rc1 {[%emt 0:02:22]} Qxc4 {[%emt 0:08:13]} 24. Rxc4 {[%emt 0:00:02]} Nef6 {[%emt 0:00:04]} 25. Rb1 {[%emt 0:03:51]} Nxd5 {[%emt 0:00:34]} 26. Ba7 {[%emt 0:00:39]} b5 {[%emt 0:02:00]} 27. axb5 {[%emt 0:01:43]} axb5 {[%emt 0:04:12]} 28. Rc6 {[%emt 0:01:11]} Rb7 {[%emt 0:00:16]} 29. Bf2 {[%emt 0:00:32]} Re8 {[%emt 0:03:02]} 30. Nf3 {[%emt 0:01:57]} Bf8 {[%emt 0:06:44]} 31. Nc5 {[%emt 0:02:28]} Nxc5 {[%emt 0:00:33]} 32. Bxc5 {[%emt 0:00:04]} Rc7 {[%emt 0:01:44]} 33. Rxc7 {[%emt 0:00:57]} Nxc7 {[%emt 0:00:01]} 34. Bb6 {[%emt 0:00:53]} Nd5 {[%emt 0:00:23]} 35. Bd4 {[%emt 0:00:19]} b4 {[%emt 0:00:26]} 36. Kf1 {[%emt 0:03:33]} Bg7 {[%emt 0:02:24]} 37. Rb3 {[%emt 0:00:49]} Bxd4 {[%emt 0:02:52]} 38. Nxd4 {[%emt 0:00:03]} Re4 {[%emt 0:00:27]} 39. Nc2 {[%emt 0:01:52]} Rc4 {[%emt 0:00:30]} 40. Ne1 {[%emt 0:00:24]} Rc3 {[%emt 0:00:41]} 41. Rb1 {[%emt 0:00:27]} Kf8 {[%emt 0:06:02]} 42. Ke2 {[%emt 0:00:35]} Ke7 {[%emt 0:02:18]} 43. Kd2 {[%emt 0:00:54]} Rc4 {[%emt 0:01:33]} 0-1

[Event "Sparkassen Open 2018"]
[Site "Heusenstamm"]
[Date "2018.11.23"]
[Round "3"]
[White "Barski, Radoslaw"]
[Black "Hebbering, Tom Elliot"]
[Result "1-0"]
[ECO "C92"]
[WhiteElo "2459"]
[BlackElo "2199"]
[Annotator "broadcasts RC"]
[PlyCount "79"]
[EventDate "2018.11.22"]
[EventType "swiss"]
[EventCountry "GER"]
[TimeControl "40/5400+30:1800+30"]

1. e4 {[%emt 0:00:00]} e5 {[%emt 0:00:00]} 2. Nf3 {[%emt 0:00:00]} Nc6 {[%emt 0:00:06]} 3. Bb5 {[%emt 0:00:41]} a6 {[%emt 0:00:09]} 4. Ba4 {[%emt 0:00:07]} Nf6 {[%emt 0:00:04]} 5. O-O {[%emt 0:00:07]} Be7 {[%emt 0:00:05]} 6. Re1 {[%emt 0:00:06]} b5 {[%emt 0:00:08]} 7. Bb3 {[%emt 0:00:05]} d6 {[%emt 0:00:05]} 8. c3 {[%emt 0:00:04]} O-O {[%emt 0:00:06]} 9. h3 {[%emt 0:00:04]} Bb7 {[%emt 0:01:55]} 10. d4 {[%emt 0:00:10]} Re8 {[%emt 0:00:14]} 11. Nbd2 {[%emt 0:00:20]} Bf8 {[%emt 0:00:20]} 12. a3 {[%emt 0:00:22]} h6 {[%emt 0:00:06]} 13. Bc2 {[%emt 0:00:18]} Nb8 {[%emt 0:02:35]} 14. b4 {[%emt 0:02:35]} Nbd7 {[%emt 0:01:41]} 15. Bd3 {[%emt 0:02:16]} c6 {[%emt 0:14:07]} 16. Bb2 {[%emt 0:18:28]} a5 {[%emt 0:16:42]} 17. dxe5 {[%emt 0:14:46]} Nxe5 {[%emt 0:04:11]} 18. Nxe5 {[%emt 0:01:28]} dxe5 {[%emt 0:00:25]} 19. Nb3 {[%emt 0:01:50]} axb4 {[%emt 0:04:55]} 20. cxb4 {[%emt 0:00:41]} Rc8 {[%emt 0:01:52]} 21. Qe2 {[%emt 0:05:04]} Bd6 {[%emt 0:02:46]} 22. Bc1 {[%emt 0:05:56]} Qe7 {[%emt 0:06:00]} 23. Be3 {[%emt 0:00:29]} Nd7 {[%emt 0:00:34]} 24. Red1 {[%emt 0:06:13]} Red8 {[%emt 0:02:28]} 25. Rac1 {[%emt 0:01:46]} Ba8 {[%emt 0:13:21]} 26. Rc3 {[%emt 0:04:55]} Nf8 {[%emt 0:19:35]} 27. Rdc1 {[%emt 0:02:43]} Rb8 {[%emt 0:00:53]} 28. Na5 {[%emt 0:02:36]} Ne6 {[%emt 0:00:11]} 29. g3 {[%emt 0:05:04]} Nd4 {[%emt 0:02:46]} 30. Bxd4 {[%emt 0:01:07]} exd4 {[%emt 0:00:09]} 31. Nxc6 {[%emt 0:01:58]} Bxc6 {[%emt 0:00:08]} 32. Rxc6 {[%emt 0:00:05]} Qa7 {[%emt 0:00:53]} 33. e5 {[%emt 0:00:32]} Be7 {[%emt 0:00:30]} 34. Qe4 {[%emt 0:03:51]} g6 {[%emt 0:00:32]} 35. Rxg6+ {[%emt 0:01:11]} fxg6 {[%emt 0:00:09]} 36. Qxg6+ {[%emt 0:00:03]} Kf8 {[%emt 0:00:12]} 37. Qxh6+ {[%emt 0:00:02]} Ke8 {[%emt 0:01:41]} 38. Bg6+ {[%emt 0:00:01]} Kd7 {[%emt 0:00:24]} 39. Bf5+ {[%emt 0:00:05]} Ke8 {[%emt 0:00:14]} 40. Qh5+ {[%emt 0:00:02]} 1-0

[Event "Sparkassen Open 2018"]
[Site "Heusenstamm"]
[Date "2018.11.24"]
[Round "4"]
[White "Schulze, Lara"]
[Black "Andreev, Eduard"]
[Result "1/2-1/2"]
[ECO "B90"]
[WhiteElo "2167"]
[BlackElo "2425"]
[Annotator "NA RC"]
[PlyCount "134"]
[EventDate "2018.11.22"]
[EventType "swiss"]
[EventCountry "GER"]
[SourceTitle "playchess.com"]
[Source "ChessBase"]
[SourceQuality "1"]
[TimeControl "40/5400+30:1800+30"]

{[%evp 8,125,34,33,33,5,20,3,19,8,14,19,18,0,23,0,8,24,89,0,9,0,33,21,68,52,91,36,42,2,17,0,70,62,70,27,41,31,43,-47,-30,-34,-22,-114,-100,-143,-145,-140,-149,-180,-97,-97,-33,-37,-35,-82,-43,-86,-74,-81,-86,-81,-25,-44,-6,0,-8,0,0,0,8,0,0,0,0,0,0,0,0,-31,0,-7,0,0,-8,-8,-8,-8,0,-7,0,-8,-8,-8,0,0,0,0,0,32767,0,0,0,0,0,0,0,0,0,0,0,0,-5,0,0,0,-5,0,0,0]} 1. e4 {[%emt 0:00:00]} c5 {[%emt 0:00:00]} 2. Nf3 {[%emt 0:00:00]} d6 {[%emt 0:00:00]} 3. d4 {[%emt 0:00:00]} cxd4 {[%emt 0:00:06]} 4. Nxd4 {[%emt 0:00:00]} Nf6 {[%emt 0:00:05]} 5. Nc3 {[%emt 0:00:00]} a6 {[%emt 0:00:06]} 6. Bc4 {[%emt 0:00:00]} e6 {[%emt 0:04:12]} 7. Bb3 {[%emt 0:00:05]} Nc6 {[%emt 0:01:59]} 8. Be3 {[%emt 0:02:08]} Qc7 {[%emt 0:03:32]} 9. O-O {[%emt 0:05:05]} Na5 {[%emt 0:04:23]} 10. Qf3 {[%emt 0:10:45] LiveBook: 3 Games B88: Sicilian: Sozin Attack} (10. f4 Be7 11. Qf3 O-O 12. f5 Nxb3 13. axb3 Bd7 14. g4 d5 15. exd5 Nxd5 16. Nxd5 exd5 17. c3 Rfe8 18. Bf4 Qb6 19. Qxd5 Bc6 20. Qa5 Qa7 21. b4 {0-1 (30) Kravtsiv,M (2511)-Areshchenko,A (2657) Alushta 2009}) 10... b5 {[%emt 0:06:44]} 11. a3 {[%emt 0:02:10]} Bb7 {[%emt 0:04:57]} 12. Rad1 $146 {[%emt 0:03:24]} ({Predecessor:} 12. Bg5 Nxb3 13. cxb3 Be7 14. Rac1 Qd7 15. Qg3 Rc8 16. f3 O-O 17. Bh6 Ne8 {0-1 (38) Goes,S (2101)-Groetz,H (2405) Leiden 2008}) 12... Nc4 {[%emt 0:13:51] [#]} (12... Nxb3 $11 13. cxb3 (13. Nxb3 Be7 $11) 13... Rc8) 13. Bxc4 {[%emt 0:10:47]} (13. Bg5 $1 $16) 13... Qxc4 {[%emt 0:01:56]} 14. Qg3 {[%emt 0:11:06]} h5 {[%emt 0:17:42]} (14... Bxe4 $11 15. Rfe1 (15. Nxe4 Nxe4 16. Qf4 Nf6 $11) 15... Bb7) 15. Bg5 {[%emt 0:06:58]} Qc5 {[%emt 0:08:02]} 16. Rfe1 {[%emt 0:11:35]} Ng4 {[%emt 0:04:43]} 17. Bc1 {[%emt 0:13:32]} g6 {[%emt 0:11:11]} 18. h3 {[%emt 0:05:00]} Ne5 {[%emt 0:01:20]} 19. f4 {[%emt 0:01:46]} h4 {[%emt 0:01:49]} (19... Nc4 $11) 20. Qf2 {[%emt 0:00:42]} Nc4 {[%emt 0:00:33]} 21. f5 {[%emt 0:03:56]} (21. b3 $5 {[%cal Rb3c4]}) 21... gxf5 {[%emt 0:00:35]} 22. exf5 {[%emt 0:01:45]} e5 {[%emt 0:00:25]} 23. Ne4 {[%emt 0:04:03]} ({White should try} 23. b3 $1 $11 Nxa3 24. Ne4 Bxe4 25. Rxe4) 23... Bxe4 $1 {[%emt 0:01:16]} 24. Rxe4 {[%emt 0:00:07]} d5 {[%emt 0:03:28]} 25. Re2 {[%emt 0:04:00]} O-O-O {[%emt 0:00:36]} 26. Nf3 {[%emt 0:02:06]} Qxf2+ {[%emt 0:01:46]} 27. Kxf2 {[%emt 0:00:01]} f6 {[%emt 0:00:32]} 28. b3 {[%emt 0:01:07]} Nd6 {[%emt 0:01:27]} 29. Rxd5 {[%emt 0:00:48]} Nxf5 {[%emt 0:01:10]} ({Black should play} 29... Ne4+ $1 $17 30. Rxe4 Rxd5) 30. Rxd8+ {[%emt 0:00:36]} Kxd8 {[%emt 0:00:06]} 31. b4 {[%emt 0:00:43]} Kd7 {[%emt 0:01:59]} 32. c4 {[%emt 0:00:50]} bxc4 {[%emt 0:01:15]} 33. Rc2 {[%emt 0:00:09]} e4 {[%emt 0:01:22]} 34. Ng1 {[%emt 0:00:59]} Bd6 {[%emt 0:01:05]} 35. Rxc4 {[%emt 0:00:26]} Bg3+ {[%emt 0:00:24]} 36. Kf1 {[%emt 0:00:30]} Nd6 {[%emt 0:00:23]} 37. Rc5 {[%emt 0:00:28]} Be5 {[%emt 0:01:08]} 38. Ne2 {[%emt 0:00:28]} Rh5 {[%emt 0:01:39]} 39. Ra5 {[%emt 0:00:33]} Rf5+ {[%emt 0:00:37]} 40. Ke1 {[%emt 0:00:37]} Bg3+ {[%emt 0:00:51]} 41. Nxg3 {[%emt 0:30:31]} Rxa5 {[%emt 0:30:07]} 42. bxa5 {[%emt 0:00:25]} hxg3 {[%emt 0:00:05]} 43. h4 {[%emt 0:00:00]} Ke6 {[%emt 0:00:00]} 44. Bf4 {[%emt 0:00:00]} Nc4 {[%emt 0:00:00]} 45. Bxg3 {[%emt 0:00:00]} Nxa5 {[%emt 0:00:00]} 46. Ke2 {[%emt 0:00:00]} Nc4 {[%emt 0:00:00]} 47. a4 {[%emt 0:00:00]} Kf5 {[%emt 0:00:00]} 48. Be1 {[%emt 0:00:00]} Kg4 {[%emt 0:00:00]} 49. a5 {[%emt 0:00:00]} f5 {[%emt 0:00:00]} 50. g3 {[%emt 0:00:00]} Ne5 {[%emt 0:00:00]} 51. Bb4 {[%emt 0:00:00]} Nc6 {[%emt 0:00:00]} ({Of course not} 51... Kxg3 $6 52. Bd6 $16) 52. Be1 {[%emt 0:00:00]} Nd4+ {[%emt 0:00:00]} 53. Kf2 {[%emt 0:00:00]} Ne6 {[%emt 0:00:00]} 54. Ke3 {[%emt 0:00:00]} Ng7 {[%emt 0:00:00]} 55. Ke2 {[%emt 0:00:29]} Nh5 {[%emt 0:00:00]} 56. Bf2 {[%emt 0:02:03]} Kh3 {[%emt 0:00:00]} 57. Be1 {[%emt 0:00:42]} Kg4 {[%emt 0:00:00]} 58. Bf2 {[%emt 0:00:09]} Nf6 {[%emt 0:00:00]} 59. Be1 {[%emt 0:00:33]} Nd5 {[%emt 0:00:00]} 60. Bf2 {[%emt 0:01:19]} Nb4 {[%emt 0:00:00]} 61. Be1 {[%emt 0:00:51]} Nd3 {[%emt 0:00:00]} 62. Bf2 {[%emt 0:00:41]} Nc1+ $11 {[%emt 0:00:00]} 63. Ke3 {[%emt 0:00:21]} Nd3 {[%emt 0:00:00]} 64. Ke2 {[%emt 0:00:08]} Ne5 {[%emt 0:00:00]} 65. Be1 {[%emt 0:00:25]} Nd7 {[%emt 0:00:00]} 66. Bf2 {[%emt 0:00:30]} Nf6 {[%emt 0:00:00]} 67. Be1 {[%emt 0:00:10]} Nh5 {[%emt 0:00:00]} 1/2-1/2

[Event "Sparkassen Open 2018"]
[Site "Heusenstamm"]
[Date "2018.11.24"]
[Round "5"]
[White "Sadzikowski, Daniel"]
[Black "Schulze, Lara"]
[Result "1-0"]
[ECO "A05"]
[WhiteElo "2544"]
[BlackElo "2167"]
[Annotator "RC"]
[PlyCount "45"]
[EventDate "2018.11.22"]
[EventType "swiss"]
[EventCountry "GER"]
[SourceTitle "playchess.com"]
[Source "ChessBase"]
[SourceQuality "1"]
[TimeControl "40/5400+30:1800+30"]

1. Nf3 {[%emt 0:00:00]} Nf6 {[%emt 0:00:00]} 2. c4 {[%emt 0:00:00]} e6 {[%emt 0:00:41]} 3. Nc3 {[%emt 0:00:01]} c5 {[%emt 0:02:22]} 4. g3 {[%emt 0:00:12]} d5 {[%emt 0:01:46]} 5. cxd5 {[%emt 0:00:05]} Nxd5 {[%emt 0:04:52]} 6. Bg2 {[%emt 0:00:05]} Nc6 {[%emt 0:01:13]} 7. O-O {[%emt 0:00:12]} Nc7 {[%emt 0:00:19]} 8. d3 {[%emt 0:16:20]} Be7 {[%emt 0:01:56]} 9. Be3 {[%emt 0:00:02]} O-O {[%emt 0:01:43]} 10. d4 {[%emt 0:11:25]} cxd4 {[%emt 0:08:23]} 11. Nxd4 {[%emt 0:00:03]} Nxd4 {[%emt 0:14:53]} 12. Bxd4 {[%emt 0:03:00]} Na6 {[%emt 0:12:44]} 13. a3 {[%emt 0:10:27]} Bf6 {[%emt 0:05:39]} 14. Bxf6 {[%emt 0:05:10]} Qxf6 {[%emt 0:01:03]} 15. Qb3 {[%emt 0:01:57]} Rb8 {[%emt 0:02:08]} 16. Nb5 {[%emt 0:04:34]} Qe5 {[%emt 0:07:04]} 17. Nxa7 {[%emt 0:08:38]} Bd7 {[%emt 0:07:24]} 18. Rac1 {[%emt 0:07:49]} Qxe2 {[%emt 0:05:13]} 19. Rfd1 {[%emt 0:00:13]} Bc6 {[%emt 0:02:58]} 20. Nxc6 {[%emt 0:00:37]} bxc6 {[%emt 0:00:18]} 21. Qc2 {[%emt 0:00:12]} Qxc2 {[%emt 0:04:37]} 22. Rxc2 {[%emt 0:00:05]} Rb6 {[%emt 0:01:00]} 23. Rxc6 {[%emt 0:01:02]} 1-0

[Event "Sparkassen Open 2018"]
[Site "Heusenstamm"]
[Date "2018.11.24"]
[Round "5"]
[White "Milov, Leonid"]
[Black "Lisanti, Andre"]
[Result "1-0"]
[ECO "C67"]
[WhiteElo "2481"]
[BlackElo "2209"]
[Annotator "ChessBase"]
[PlyCount "63"]
[EventDate "2018.11.22"]
[EventType "swiss"]
[EventCountry "GER"]
[SourceTitle "playchess.com"]
[Source "ChessBase"]
[SourceQuality "1"]
[TimeControl "40/5400+30:1800+30"]

1. e4 {[%emt 0:00:00]} e5 {[%emt 0:14:06]} 2. Nf3 {[%emt 0:00:07]} Nc6 {[%emt 0:00:05]} 3. Bb5 {[%emt 0:00:04]} Nf6 {[%emt 0:00:11]} 4. O-O {[%emt 0:01:39]} Nxe4 {[%emt 0:00:13]} 5. d4 {[%emt 0:01:59]} Nd6 {[%emt 0:00:08]} 6. Bxc6 {[%emt 0:01:17]} dxc6 {[%emt 0:00:09]} 7. dxe5 {[%emt 0:00:10]} Nf5 {[%emt 0:00:06]} 8. Qxd8+ {[%emt 0:00:33]} Kxd8 {[%emt 0:00:06]} 9. Nc3 {[%emt 0:00:17]} h6 {[%emt 0:03:10]} 10. h3 {[%emt 0:00:44]} a5 {[%emt 0:09:22]} 11. Bf4 {[%emt 0:03:20]} Be6 {[%emt 0:00:31]} 12. g4 {[%emt 0:06:53]} Ne7 {[%emt 0:00:18]} 13. Nd4 {[%emt 0:00:26]} Ng6 {[%emt 0:01:59]} 14. Bg3 {[%emt 0:01:49]} h5 {[%emt 0:00:32]} 15. Nxe6+ {[%emt 0:09:46]} fxe6 {[%emt 0:00:25]} 16. Ne4 {[%emt 0:00:06]} Be7 {[%emt 0:11:38]} 17. f4 {[%emt 0:00:11]} hxg4 {[%emt 0:02:52]} 18. hxg4 {[%emt 0:00:04]} Bh4 {[%emt 0:00:50]} 19. Bh2 {[%emt 0:01:56]} Re8 {[%emt 0:12:43]} 20. Nc5 {[%emt 0:14:23]} b6 {[%emt 0:04:19]} 21. Nxe6+ {[%emt 0:04:15]} Rxe6 {[%emt 0:02:23]} 22. f5 {[%emt 0:00:16]} Re7 {[%emt 0:00:37]} 23. fxg6 {[%emt 0:07:25]} Kd7 {[%emt 0:01:15]} 24. Rf5 {[%emt 0:02:48]} Rh8 {[%emt 0:00:23]} 25. Raf1 {[%emt 0:05:58]} Ke6 {[%emt 0:00:34]} 26. Rh5 {[%emt 0:07:41]} Rxh5 {[%emt 0:00:43]} 27. gxh5 {[%emt 0:00:04]} Rd7 {[%emt 0:00:13]} 28. Kg2 {[%emt 0:01:27]} Rd2+ {[%emt 0:00:24]} 29. Kh3 {[%emt 0:00:37]} Bg5 {[%emt 0:00:36]} 30. Bf4 {[%emt 0:07:59]} Bxf4 {[%emt 0:00:07]} 31. Rxf4 {[%emt 0:00:03]} Kxe5 {[%emt 0:01:30]} 32. Rf7 {[%emt 0:00:35]} 1-0

[Event "Sparkassen Open 2018"]
[Site "Heusenstamm"]
[Date "2018.11.24"]
[Round "5"]
[White "Bethke, Richard"]
[Black "Hacker, Jonas"]
[Result "0-1"]
[ECO "C50"]
[WhiteElo "2192"]
[BlackElo "2350"]
[Annotator "NA"]
[PlyCount "56"]
[EventDate "2018.11.22"]
[EventType "swiss"]
[EventCountry "GER"]
[SourceTitle "playchess.com"]
[Source "ChessBase"]
[SourceQuality "1"]
[TimeControl "40/5400+30:1800+30"]

1. e4 {[%emt 0:00:00]} e5 {[%emt 0:00:00]} 2. Nf3 {[%emt 0:00:00]} Nc6 {[%emt 0:00:00]} 3. Bc4 {[%emt 0:00:00]} Nf6 {[%emt 0:00:00]} 4. d3 {[%emt 0:00:00]} Bc5 {[%emt 0:00:18]} 5. O-O {[%emt 0:00:02]} d6 {[%emt 0:00:41]} 6. a4 {[%emt 0:01:04]} a6 {[%emt 0:00:20]} 7. Re1 {[%emt 0:02:55]} O-O {[%emt 0:11:06]} 8. Bg5 {[%emt 0:00:46]} h6 {[%emt 0:04:51]} 9. Bh4 {[%emt 0:00:16]} Bg4 {[%emt 0:04:51]} 10. c3 {[%emt 0:02:41]} g5 {[%emt 0:03:07]} 11. Bg3 {[%emt 0:00:05]} Nh5 {[%emt 0:05:30]} 12. Bd5 {[%emt 0:10:29]} Qf6 {[%emt 0:04:14]} 13. Nbd2 {[%emt 0:01:35]} Nd8 {[%emt 0:07:42]} 14. Qc2 {[%emt 0:04:16]} c6 {[%emt 0:02:27]} 15. Ba2 {[%emt 0:00:49]} Ba7 {[%emt 0:02:57]} 16. d4 {[%emt 0:03:06]} Nxg3 {[%emt 0:09:40]} 17. dxe5 {[%emt 0:00:37]} dxe5 {[%emt 0:04:10]} 18. hxg3 {[%emt 0:00:11]} Ne6 {[%emt 0:01:54]} 19. Bc4 {[%emt 0:05:37]} Rad8 {[%emt 0:03:14]} 20. Be2 {[%emt 0:01:43]} h5 {[%emt 0:03:31]} 21. b4 {[%emt 0:20:57]} Bxf3 {[%emt 0:06:02]} 22. gxf3 {[%emt 0:00:54]} g4 {[%emt 0:00:14]} 23. Rf1 {[%emt 0:08:16]} Qg5 {[%emt 0:03:39]} 24. Rad1 {[%emt 0:11:07]} h4 {[%emt 0:01:51]} 25. Kg2 {[%emt 0:11:39]} hxg3 {[%emt 0:05:25]} 26. fxg3 {[%emt 0:01:04]} gxf3+ {[%emt 0:03:05]} 27. Rxf3 {[%emt 0:02:38]} Nf4+ {[%emt 0:00:59]} 28. Kf1 {[%emt 0:01:08]} Qh5 {[%emt 0:00:52]} 0-1

[Event "Sparkassen Open 2018"]
[Site "Heusenstamm"]
[Date "2018.11.24"]
[Round "5"]
[White "Adocchio, Giampiero"]
[Black "Paszewski, Mateusz"]
[Result "0-1"]
[ECO "B76"]
[WhiteElo "2171"]
[BlackElo "2346"]
[Annotator "NA"]
[PlyCount "84"]
[EventDate "2018.11.22"]
[EventType "swiss"]
[EventCountry "GER"]
[SourceTitle "playchess.com"]
[Source "ChessBase"]
[SourceQuality "1"]
[TimeControl "40/5400+30:1800+30"]

1. e4 {[%emt 0:00:00]} c5 {[%emt 0:00:00]} 2. Nf3 {[%emt 0:00:00]} d6 {[%emt 0:00:00]} 3. d4 {[%emt 0:00:00]} cxd4 {[%emt 0:00:00]} 4. Nxd4 {[%emt 0:00:00]} Nf6 {[%emt 0:00:00]} 5. Nc3 {[%emt 0:00:00]} g6 {[%emt 0:00:00]} 6. Be3 {[%emt 0:00:05]} Bg7 {[%emt 0:01:24]} 7. f3 {[%emt 0:00:05]} O-O {[%emt 0:00:23]} 8. Qd2 {[%emt 0:00:04]} Nc6 {[%emt 0:00:04]} 9. O-O-O {[%emt 0:00:06]} d5 {[%emt 0:00:24]} 10. Qe1 {[%emt 0:00:13]} e5 {[%emt 0:00:09]} 11. Nxc6 {[%emt 0:00:06]} bxc6 {[%emt 0:00:03]} 12. exd5 {[%emt 0:00:21]} Nxd5 {[%emt 0:00:02]} 13. Bc4 {[%emt 0:00:19]} Be6 {[%emt 0:01:30]} 14. Kb1 {[%emt 0:00:52]} a5 {[%emt 0:03:01]} 15. a4 {[%emt 0:20:56]} Rb8 {[%emt 0:06:51]} 16. Ne4 {[%emt 0:01:06]} Qc7 {[%emt 0:13:55]} 17. Bc5 {[%emt 0:01:03]} Rfd8 {[%emt 0:03:44]} 18. Bb3 {[%emt 0:01:58]} f5 {[%emt 0:05:16]} 19. Ng5 {[%emt 0:02:20]} Bc8 {[%emt 0:00:49]} 20. h4 {[%emt 0:18:12]} h6 {[%emt 0:09:42]} 21. Nh3 {[%emt 0:00:06]} Be6 {[%emt 0:00:49]} 22. Nf2 {[%emt 0:02:36]} Nf4 {[%emt 0:09:47]} 23. Rxd8+ {[%emt 0:01:19]} Qxd8 {[%emt 0:00:54]} 24. Bxe6+ {[%emt 0:02:29]} Nxe6 {[%emt 0:01:00]} 25. Ba3 {[%emt 0:04:34]} Qd4 {[%emt 0:01:18]} 26. Qd1 {[%emt 0:04:33]} e4 {[%emt 0:08:44]} 27. Qxd4 {[%emt 0:02:16]} Bxd4 {[%emt 0:00:02]} 28. Nd1 {[%emt 0:02:09]} e3 {[%emt 0:07:59]} 29. c3 {[%emt 0:00:47]} Bb6 {[%emt 0:01:04]} 30. Re1 {[%emt 0:02:26]} f4 {[%emt 0:00:25]} 31. g3 {[%emt 0:00:49]} g5 {[%emt 0:04:57]} 32. hxg5 {[%emt 0:00:19]} hxg5 {[%emt 0:00:18]} 33. gxf4 {[%emt 0:00:06]} gxf4 {[%emt 0:00:02]} 34. Be7 {[%emt 0:04:12]} Kf7 {[%emt 0:03:15]} 35. Bd6 {[%emt 0:01:27]} Rd8 {[%emt 0:00:41]} 36. Bxf4 {[%emt 0:00:06]} Rxd1+ {[%emt 0:09:01]} 37. Rxd1 {[%emt 0:00:05]} Nxf4 {[%emt 0:00:07]} 38. Kc2 {[%emt 0:00:21]} e2 {[%emt 0:00:07]} 39. Rh1 {[%emt 0:00:22]} Bf2 {[%emt 0:00:17]} 40. Kd2 {[%emt 0:00:05]} e1=Q+ {[%emt 0:00:08]} 41. Rxe1 {[%emt 0:30:04]} Bxe1+ {[%emt 0:30:04]} 42. Kxe1 {[%emt 0:00:06]} Nd3+ {[%emt 0:00:03]} 0-1

[Event "Sparkassen Open 2018"]
[Site "Heusenstamm"]
[Date "2018.11.25"]
[Round "6"]
[White "Noe, Christopher"]
[Black "Hirneise, Jens"]
[Result "1-0"]
[ECO "E94"]
[WhiteElo "2529"]
[BlackElo "2370"]
[Annotator "ChessBase"]
[PlyCount "83"]
[EventDate "2018.11.22"]
[EventType "swiss"]
[EventCountry "GER"]
[SourceTitle "playchess.com"]
[Source "ChessBase"]
[SourceQuality "1"]
[TimeControl "40/5400+30:1800+30"]

1. d4 {[%emt 0:00:00]} Nf6 {[%emt 0:00:00]} 2. c4 {[%emt 0:00:00]} g6 {[%emt 0:00:00]} 3. Nc3 {[%emt 0:00:00]} Bg7 {[%emt 0:00:00]} 4. e4 {[%emt 0:00:00]} d6 {[%emt 0:00:00]} 5. Nf3 {[%emt 0:00:00]} O-O {[%emt 0:00:11]} 6. Be2 {[%emt 0:00:00]} e5 {[%emt 0:00:06]} 7. O-O {[%emt 0:00:01]} exd4 {[%emt 0:00:34]} 8. Nxd4 {[%emt 0:00:07]} Re8 {[%emt 0:00:06]} 9. f3 {[%emt 0:00:55]} Nc6 {[%emt 0:00:05]} 10. Be3 {[%emt 0:01:01]} Nh5 {[%emt 0:00:13]} 11. Qd2 {[%emt 0:15:18]} Nf4 {[%emt 0:00:41]} 12. Nxc6 {[%emt 0:01:19]} Nxe2+ {[%emt 0:00:21]} 13. Nxe2 {[%emt 0:00:21]} bxc6 {[%emt 0:00:06]} 14. Bd4 {[%emt 0:00:18]} Bxd4+ {[%emt 0:04:55]} 15. Nxd4 {[%emt 0:05:52]} c5 {[%emt 0:02:14]} 16. Nb5 {[%emt 0:02:06]} Bd7 {[%emt 0:10:38]} 17. Nc3 {[%emt 0:18:08]} Bc6 {[%emt 0:02:59]} 18. Rab1 {[%emt 0:01:11]} Qd7 {[%emt 0:01:10]} 19. b4 {[%emt 0:01:37]} cxb4 {[%emt 0:01:26]} 20. Rxb4 {[%emt 0:00:08]} Reb8 {[%emt 0:05:15]} 21. Rxb8+ {[%emt 0:03:41]} Rxb8 {[%emt 0:00:02]} 22. Qd4 {[%emt 0:02:10]} Rb6 {[%emt 0:15:28]} 23. c5 {[%emt 0:07:02]} dxc5 {[%emt 0:01:43]} 24. Qxc5 {[%emt 0:00:54]} Qd6 {[%emt 0:02:34]} 25. Qe3 {[%emt 0:04:19]} Qa3 {[%emt 0:07:36]} 26. Rd1 {[%emt 0:03:42]} Rb8 {[%emt 0:00:16]} 27. Qd4 {[%emt 0:01:27]} Qa6 {[%emt 0:07:41]} 28. Qf6 {[%emt 0:04:49]} Qb6+ {[%emt 0:06:28]} 29. Kh1 {[%emt 0:00:06]} Qc5 {[%emt 0:11:17]} 30. h3 {[%emt 0:06:50]} a5 {[%emt 0:00:41]} 31. Kh2 {[%emt 0:01:17]} Re8 {[%emt 0:02:33]} 32. Ne2 {[%emt 0:09:27]} Ba4 {[%emt 0:08:17]} 33. Rd5 {[%emt 0:05:20]} Qb6 {[%emt 0:02:14]} 34. Qc3 {[%emt 0:00:05]} Ra8 {[%emt 0:01:36]} 35. Nf4 {[%emt 0:04:05]} Be8 {[%emt 0:02:13]} 36. h4 {[%emt 0:02:27]} Qc6 {[%emt 0:02:25]} 37. Qd4 {[%emt 0:01:24]} Qa4 {[%emt 0:01:36]} 38. Qe5 {[%emt 0:00:52]} Qc6 {[%emt 0:02:21]} 39. h5 {[%emt 0:00:29]} f6 {[%emt 0:00:56]} 40. Qe7 {[%emt 0:00:14]} Bf7 {[%emt 0:00:31]} 41. Rd7 {[%emt 0:30:50]} Qc4 {[%emt 0:04:02]} 42. Nd5 {[%emt 0:00:00]} 1-0